bitfinex/quotes_SOLUSD_20251009
["timestamp","ask_amount","ask_price","bid_price","bid_amount"]
[1760019647355,3.90588007,222.88,222.76,20.8]
[1760019647570,3.90588007,222.88,222.77,21.52]
[1760019647956,3.90588007,222.86,222.77,0.72]
[1760019648190,3.90588007,222.82,222.72,0.72]
[1760019648496,8.39392705,222.82,222.72,5.20993867]
[1760019648788,3.90588007,222.81,222.73,33.0]
[1760019649677,8.39381941,222.82,222.73,33.0]
[1760019649863,3.90588007,222.82,222.73,33.0]
[1760019650183,21.43,222.83,222.74,0.72]
[1760019650493,25.33588007,222.83,222.75,4.48933782]
[1760019650693,29.82360836,222.83,222.75,4.48933782]
[1760019650870,25.33588007,222.83,222.75,4.48933782]
[1760019651070,29.8236141,222.83,222.75,4.48933782]
[1760019651683,3.90588007,222.82,222.75,4.48933782]
[1760019651863,3.90588007,222.82,222.74,0.72]
[1760019652605,3.90588007,222.79,222.7,21.52]
[1760019652791,3.90588007,222.79,222.71,37.49014413]
[1760019652973,3.90588007,222.8,222.71,38.21014413]
[1760019653366,3.90588007,222.79,222.71,38.21014413]
[1760019653967,14.78235528,222.82,222.72,0.72]
[1760019654669,19.27034683,222.82,222.73,4.48974094]
[1760019654880,4.48799155,222.82,222.74,0.72]
[1760019655072,20.8,222.83,222.74,0.72]
[1760019655768,25.28772634,222.83,222.74,0.72]
[1760019656967,25.28772634,222.83,222.75,4.48933782]
[1760019657475,3.90588007,222.87,222.76,0.72]
[1760019657788,4.53588007,222.88,222.77,33.0]
[1760019657988,4.53588007,222.88,222.78,0.72]
[1760019658564,5.11691342,222.88,222.79,4.4885318]
[1760019659569,20.23959176,222.88,222.78,0.72]
[1760019659769,3.90588007,222.86,222.79,33.0]
[1760019660083,4.48691342,222.88,222.8,0.72]
[1760019660389,25.28640299,222.9,222.8,0.72]
[1760019660892,0.63,222.91,222.8,0.72]
[1760019661089,8.39119067,222.95,222.82,20.8]
[1760019661284,3.90588007,222.9,222.83,33.0]
[1760019661487,3.90588007,222.9,222.82,33.0]
[1760019661488,4.48692062,222.87,222.82,33.0]
[1760019661688,0.63,222.87,222.82,33.0]
[1760019661879,8.39179429,222.92,222.83,0.72]
[1760019662086,4.48591422,222.92,222.83,0.72]
[1760019662389,20.8,222.92,222.83,0.72]
[1760019662864,4.53588007,222.91,222.84,33.0]
[1760019663481,4.53588007,222.91,222.83,33.0]
[1760019664202,4.48631673,222.9,222.83,37.48754215]
[1760019665077,4.48631673,222.9,222.82,33.0]
[1760019665078,4.53588007,222.89,222.82,33.0]
[1760019665276,20.8,222.9,222.83,0.72]
[1760019665787,4.48583332,222.93,222.83,81.62]
[1760019665989,4.48583332,222.93,222.84,0.72]
[1760019666501,8.39139186,222.94,222.85,4.48732331]
[1760019666697,4.48551179,222.94,222.86,0.72]
[1760019667066,3.90588007,222.97,222.86,0.72]
[1760019667405,0.63,222.96,222.86,81.62]
[1760019667577,3.90588007,222.96,222.87,0.72]
[1760019667779,3.90588007,222.96,222.88,32.98]
[1760019668017,4.48490828,222.97,222.88,32.98]
[1760019668174,3.90588007,222.96,222.88,32.98]
[1760019668374,8.39078835,222.97,222.89,4.48651801]
[1760019668706,8.39078835,222.97,222.89,5.20651801]
[1760019669201,4.48490828,222.97,222.89,5.20651801]
[1760019669508,2.94916191,222.98,222.89,15.70281304]
[1760019669699,2.94916191,222.98,222.9,0.72]
[1760019670209,0.2,222.99,222.9,81.62]
[1760019670387,4.68451596,222.99,222.91,4.48611547]
[1760019670589,3.90588007,222.96,222.91,80.9]
[1760019670772,3.90588007,222.93,222.84,80.9]
[1760019670978,3.90588007,222.9,222.84,32.98]
[1760019671199,14.78235528,222.89,222.8,0.72]
[1760019671400,31.67647521,222.89,222.8,33.7]
[1760019671604,24.70588007,222.86,222.78,0.72]
[1760019671831,24.70588007,222.86,222.79,32.98]
[1760019671832,3.90588007,222.83,222.79,32.98]
[1760019672173,3.90588007,222.81,222.73,5.20958612]
[1760019672416,4.4885318,222.79,222.73,5.20958612]
[1760019672578,8.39441187,222.79,222.74,32.98]
[1760019672782,8.39441187,222.79,222.73,5.20958612]
[1760019672783,8.39441187,222.79,222.73,0.72]
[1760019673103,3.90588007,222.77,222.73,32.98]
[1760019673824,4.53588007,222.77,222.7,4.49021369]
[1760019674040,4.53588007,222.77,222.67,20.8]
[1760019674041,3.90588007,222.74,222.69,32.98]
[1760019674353,4.48994252,222.72,222.63,4.49175762]
[1760019674639,8.39582259,222.72,222.64,33.7]
[1760019675101,8.39582259,222.72,222.64,0.72]
[1760019675302,8.39582259,222.72,222.65,32.98]
[1760019675830,3.90588007,222.71,222.64,33.7]
[1760019676707,24.70588007,222.67,222.58,0.72]
[1760019676916,3.90588007,222.64,222.59,32.98]
[1760019677222,3.90588007,222.62,222.58,32.98]
[1760019677423,3.90588007,222.61,222.54,0.72]
[1760019677600,3.90588007,222.6,222.55,32.98]
[1760019677919,20.8,222.67,222.56,0.72]
[1760019678221,3.90588007,222.65,222.56,0.72]
[1760019678430,3.90588007,222.64,222.56,0.72]
[1760019678720,3.90588007,222.63,222.57,4.4929685]
[1760019679026,3.90588007,222.61,222.55,32.98]
[1760019679323,3.90588007,222.58,222.53,0.1]
[1760019679506,21.43,222.61,222.53,0.1]
[1760019679507,3.90588007,222.55,222.53,0.1]
[1760019679707,21.43,222.57,222.53,0.1]
[1760019679918,20.8,222.57,222.53,0.1]
[1760019680225,36.21235528,222.54,222.53,0.1]
[1760019680654,40.70592946,222.54,222.53,0.1]
[1760019680833,36.80004939,222.54,222.53,0.1]
[1760019681040,40.70592946,222.54,222.53,0.1]
[1760019681838,40.07592946,222.54,222.53,0.1]
[1760019682150,40.70592946,222.54,222.53,0.1]
[1760019682950,40.70592946,222.54,222.53,1e-08]
[1760019683151,10.87647521,222.49,222.48,0.1]
[1760019683359,14.78235528,222.49,222.48,0.1]
[1760019683657,11.50647521,222.49,222.48,0.1]
[1760019684036,15.41235528,222.49,222.48,0.1]
[1760019684376,14.78235528,222.49,222.48,0.1]
[1760019684851,20.8,222.49,222.48,0.1]
[1760019685063,0.63,222.58,222.48,0.79]
[1760019685235,3.90588007,222.54,222.48,0.79]
[1760019685435,3.90588007,222.51,222.48,0.1]
[1760019685644,31.67647521,222.54,222.48,0.1]
[1760019685645,3.90588007,222.52,222.48,0.1]
[1760019685849,31.67647521,222.54,222.48,0.1]
[1760019685850,3.90588007,222.5,222.48,0.1]
[1760019686153,3.90588007,222.49,222.48,0.1]
[1760019686362,15.41235528,222.49,222.48,0.1]
[1760019686932,19.9069393,222.49,222.48,0.1]
[1760019687736,19.9069393,222.49,222.48,1e-08]
[1760019688245,15.41235528,222.49,222.48,1e-08]
[1760019689563,31.67647521,222.47,222.46,1e-08]
[1760019689734,18.68823535,222.47,222.46,1e-08]
[1760019690054,19.31823535,222.47,222.46,1e-08]
[1760019690255,15.41235528,222.47,222.46,1e-08]
[1760019690461,11.50647521,222.47,222.46,1e-08]
[1760019690639,20.8,222.47,222.46,1e-08]
[1760019690951,36.21235528,222.47,222.46,1e-08]
[1760019691151,40.70734336,222.47,222.46,1e-08]
[1760019691455,36.80146329,222.47,222.46,1e-08]
[1760019691658,40.70734336,222.47,222.46,1e-08]
[1760019691885,47.51083874,222.47,222.46,1e-08]
[1760019692644,43.60495867,222.47,222.46,1e-08]
[1760019693360,43.60495867,222.47,222.39,0.1]
[1760019693361,31.67647521,222.4,222.39,0.1]
[1760019693655,68.60235528,222.4,222.39,0.1]
[1760019694033,69.23235528,222.4,222.39,0.1]
[1760019694853,69.23235528,222.4,222.38,0.1]
[1760019694854,10.87647521,222.39,222.38,0.1]
[1760019695056,3.90588007,222.31,222.28,0.69]
[1760019695231,8.40410327,222.31,222.28,0.69]
[1760019695437,3.90588007,222.31,222.3,0.79]
[1760019695946,3.90588007,222.31,222.3,0.1]
[1760019696143,3.90588007,222.31,222.3,0.79]
[1760019696551,20.8,222.32,222.3,0.79]
[1760019696756,37.51704999,222.37,222.3,0.79]
[1760019696757,20.8,222.34,222.3,0.79]
[1760019697133,3.90588007,222.32,222.3,0.1]
[1760019697339,3.90588007,222.32,222.31,0.69]
[1760019697541,3.90588007,222.32,222.3,0.1]
[1760019697838,3.90588007,222.31,222.3,0.1]
[1760019698041,35.58235528,222.31,222.3,0.1]
[1760019699040,31.67647521,222.31,222.3,0.1]
[1760019699275,20.8,222.33,222.3,0.79]
[1760019699438,4.53588007,222.43,222.3,0.79]
[1760019699643,3.90588007,222.34,222.3,0.79]
[1760019699847,3.90588007,222.34,222.3,0.1]
[1760019700061,3.90588007,222.33,222.31,0.69]
[1760019700287,3.90588007,222.43,222.31,0.69]
[1760019700580,3.90588007,222.38,222.31,0.69]
[1760019700757,3.90588007,222.35,222.31,0.69]
[1760019701085,3.90588007,222.32,222.3,0.1]
[1760019701368,10.87647521,222.37,222.3,0.1]
[1760019701369,4.4982232,222.31,222.3,0.1]
[1760019701664,8.40410327,222.31,222.3,0.1]
[1760019701970,13.34158979,222.42,222.3,0.79]
[1760019702173,10.87647521,222.37,222.3,0.79]
[1760019702346,3.90588007,222.37,222.3,5.28836869]
[1760019702544,3.90588007,222.37,222.31,0.69]
[1760019702862,3.90588007,222.36,222.31,0.69]
[1760019703163,20.8,222.4,222.31,0.69]
[1760019703341,20.8,222.4,222.32,4.49802087]
[1760019703551,3.90588007,222.41,222.33,0.69]
[1760019703743,37.53438202,222.5,222.33,0.69]
[1760019703962,24.70588007,222.46,222.33,0.69]
[1760019704163,3.90588007,222.44,222.33,0.69]
[1760019704344,3.90588007,222.45,222.33,0.69]
[1760019704540,3.90588007,222.43,222.33,0.69]
[1760019704746,3.90588007,222.4,222.33,0.69]
[1760019704971,20.8,222.42,222.33,0.69]
[1760019705154,3.90588007,222.45,222.33,0.69]
[1760019705357,37.53443414,222.5,222.37,20.8]
[1760019705655,37.53443414,222.5,222.38,0.7]
[1760019705656,3.90588007,222.48,222.38,0.7]
[1760019705857,3.90588007,222.47,222.38,0.7]
[1760019706054,6.24659192,222.45,222.38,0.7]
[1760019706754,6.24659192,222.44,222.38,0.7]
[1760019707054,6.24659192,222.42,222.38,0.7]
[1760019707265,10.74267627,222.42,222.38,0.7]
[1760019707463,6.24659192,222.39,222.34,0.7]
[1760019707654,6.24659192,222.39,222.32,4.49802087]
[1760019707655,10.87647521,222.41,222.32,0.7]
[1760019707864,10.87647521,222.41,222.33,0.7]
[1760019708160,6.24659192,222.37,222.33,0.7]
[1760019708361,6.24659192,222.38,222.33,0.7]
[1760019708659,6.24659192,222.38,222.34,0.7]
[1760019708859,6.24659192,222.38,222.35,0.7]
[1760019709052,11.23775328,222.47,222.36,0.7]
[1760019709254,20.8,222.43,222.37,4.49700948]
[1760019709469,6.24659192,222.45,222.38,0.7]
[1760019709669,6.24659192,222.44,222.36,5.19720922]
[1760019709860,20.8,222.45,222.37,0.7]
[1760019710060,6.24659192,222.44,222.37,0.7]
[1760019710247,6.24659192,222.43,222.37,0.7]
[1760019710652,6.24659192,222.44,222.37,0.7]
[1760019710975,6.24659192,222.43,222.37,0.7]
[1760019711150,6.24659192,222.42,222.37,0.7]
[1760019711352,10.74319941,222.39,222.33,0.7]
[1760019711553,6.24659192,222.36,222.3,0.8]
[1760019711973,6.24659192,222.37,222.3,0.8]
[1760019712359,4.49660749,222.39,222.3,0.8]
[1760019712360,6.24659192,222.34,222.3,0.8]
[1760019712553,6.24659192,222.34,222.3,5.2984207]
[1760019712759,6.24659192,222.34,222.3,0.8]
[1760019712973,6.24659192,222.35,222.3,0.1]
[1760019713274,6.24659192,222.35,222.3,5.29842313]
[1760019713576,20.8,222.39,222.31,0.7]
[1760019713775,6.24659192,222.38,222.31,0.7]
[1760019714581,20.8,222.39,222.31,0.7]
[1760019714790,4.49479559,222.48,222.33,20.8]
[1760019714952,10.74138751,222.48,222.34,33.72]
[1760019715153,10.74138751,222.48,222.33,20.8]
[1760019715154,20.8,222.45,222.35,0.7]
[1760019715374,6.24659192,222.43,222.36,4.49721172]
[1760019715548,6.24659192,222.4,222.32,33.72]
[1760019715755,27.04659192,222.41,222.33,0.7]
[1760019716474,6.24659192,222.45,222.33,0.7]
[1760019716664,20.8,222.44,222.33,0.7]
[1760019716872,6.24659192,222.45,222.33,0.7]
[1760019717066,20.8,222.46,222.33,0.7]
[1760019717265,2.91381523,222.45,222.33,0.7]
[1760019717666,2.91381523,222.45,222.35,20.8]
[1760019717878,6.24659192,222.47,222.36,0.7]
[1760019718284,2.91381523,222.46,222.36,0.7]
[1760019718463,2.91381523,222.45,222.36,0.7]
[1760019718663,2.91381523,222.47,222.36,0.7]
[1760019718867,2.91381523,222.47,222.37,32.12617615]
[1760019719088,10.87647521,222.54,222.41,20.8]
[1760019719089,2.91381523,222.51,222.41,20.8]
[1760019719382,2.91381523,222.5,222.41,20.8]
[1760019719581,2.91381523,222.49,222.42,0.7]
[1760019719779,6.24659192,222.53,222.43,15.7352875]
[1760019719972,2.92211259,222.52,222.44,0.7]
[1760019720278,9.16870451,222.51,222.44,0.7]
[1760019720459,2.92211259,222.5,222.43,4.49579643]
[1760019720663,2.92211259,222.49,222.44,0.7]
[1760019720980,27.04659192,222.53,222.44,0.7]
[1760019721173,2.92433312,222.52,222.44,0.7]
[1760019721488,6.24659192,222.48,222.38,4.49680726]
[1760019721697,4.49599856,222.42,222.33,0.7]
[1760019721929,4.49599856,222.42,222.17,22.5043314]
[1760019721930,6.24659192,222.39,222.31,4.4982232]
[1760019722193,2.92433312,222.38,222.32,0.7]
[1760019722361,9.17092504,222.37,222.31,4.4982232]
[1760019722563,2.92433312,222.36,222.3,0.1]
[1760019722889,9.17092504,222.35,222.3,0.1]
[1760019723202,6.24659192,222.33,222.3,0.1]
[1760019723366,2.92433312,222.32,222.3,0.1]
[1760019723565,2.92433312,222.31,222.3,0.1]
[1760019723766,7.42255632,222.31,222.3,0.1]
[1760019723990,2.92433312,222.31,222.3,0.1]
[1760019724171,6.59750662,222.31,222.3,0.1]
[1760019724378,9.80092504,222.31,222.3,0.1]
[1760019724586,17.97232174,222.31,222.3,0.1]
[1760019724885,10.87647521,222.3,222.25,0.1]
[1760019725068,6.24659192,222.27,222.25,0.1]
[1760019725285,34.60080833,222.26,222.25,0.1]
[1760019725576,20.8,222.24,222.12,11.25505839]
[1760019725787,6.24659192,222.16,222.09,13.54598716]
[1760019725996,2.92433312,222.15,222.1,0.7]
[1760019726172,2.92433312,222.14,222.11,0.7]
[1760019726375,3.66450121,222.2,222.11,0.7]
[1760019726676,2.92892919,222.19,222.11,0.7]
[1760019726874,2.92892919,222.18,222.11,0.7]
[1760019727074,2.92892919,222.17,222.11,0.7]
[1760019727390,2.92892919,222.16,222.11,0.7]
[1760019727601,6.24659192,222.2,222.12,0.7]
[1760019727774,2.92549541,222.19,222.13,4.50186827]
[1760019727972,2.92549541,222.18,222.13,4.50186827]
[1760019728174,6.24659192,222.19,222.12,0.7]
[1760019728396,2.92537389,222.18,222.12,5.20202689]
[1760019728695,2.92325664,222.17,222.12,4.50202689]
[1760019728903,6.24659192,222.18,222.12,4.50202689]
[1760019729079,2.92279376,222.17,222.09,0.7]
[1760019729275,20.8,222.2,222.09,16.45933821]
[1760019729494,6.24659192,222.18,222.1,0.7]
[1760019729908,6.24659192,222.18,222.11,15.75795776]
[1760019730275,6.24659192,222.18,222.11,4.50227364]
[1760019730794,6.24659192,222.18,222.1,5.20243162]
[1760019730994,2.92269748,222.19,222.1,5.20243162]
[1760019731174,6.24659192,222.15,222.08,0.7]
[1760019731994,6.24659192,222.15,222.09,4.50267909]
[1760019732500,6.24659192,222.13,222.07,4.60290398]
[1760019732795,20.8,222.16,222.08,0.72]
[1760019733206,3.66450121,222.26,222.08,0.72]
[1760019733404,3.66450121,222.26,222.1,20.8]
[1760019733405,6.24659192,222.21,222.1,20.8]
[1760019733609,6.24659192,222.21,222.11,0.72]
[1760019733909,6.24659192,222.21,222.12,4.50207095]
[1760019734110,6.24659192,222.21,222.12,15.75724833]
[1760019734296,4.50026088,222.21,222.12,4.50207095]
[1760019734477,0.53,222.2,222.08,4.50288184]
[1760019734684,6.24659192,222.17,222.09,0.72]
[1760019735384,6.24659192,222.17,222.08,69.60008645]
[1760019735385,6.77659192,222.17,222.08,48.80008645]
[1760019735595,6.24659192,222.17,222.08,48.80008645]
[1760019735791,6.24659192,222.17,222.1,4.50247636]
[1760019736211,20.8,222.19,222.11,0.72]
[1760019736413,27.04659192,222.19,222.11,0.72]
[1760019737188,22.4949227,222.28,222.11,0.72]
[1760019737189,6.24659192,222.27,222.15,20.8]
[1760019737390,6.24659192,222.27,222.16,33.76]
[1760019737600,10.87647521,222.28,222.17,0.72]
[1760019737806,10.74569672,222.27,222.18,4.50085516]
[1760019737987,6.24659192,222.25,222.17,0.72]
[1760019738194,6.24659192,222.25,222.05,13.70511901]
[1760019738195,6.24659192,222.18,222.05,13.70511901]
[1760019738387,6.24659192,222.16,222.08,0.72]
[1760019738589,6.24659192,222.14,222.08,4.50288184]
[1760019739212,0.53,222.16,222.07,0.1]
[1760019739213,6.24659192,222.13,222.07,0.1]
[1760019739415,0.53,222.13,222.07,0.1]
[1760019739709,6.24659192,222.13,222.07,0.1]
[1760019739906,6.24659192,222.13,222.07,4.6030459]
[1760019740292,0.53,222.23,222.08,0.72]
[1760019740496,6.24659192,222.21,222.08,0.72]
[1760019740791,10.87647521,222.22,222.08,0.72]
[1760019740792,6.24659192,222.17,222.08,0.72]
[1760019740998,6.24659192,222.15,222.07,25.4030459]
[1760019741199,6.24659192,222.15,222.07,37.6430459]
[1760019741401,6.24659192,222.13,222.07,4.6030459]
[1760019741994,6.24659192,222.11,222.07,4.6030459]
[1760019742193,6.24659192,222.11,222.07,0.1]
[1760019742814,6.24659192,222.09,222.07,0.1]
[1760019743515,0.53,222.08,222.07,0.1]
[1760019743813,6.24659192,222.08,222.07,0.1]
[1760019744314,27.04659192,222.11,222.07,0.1]
[1760019744504,27.04659192,222.11,222.07,4.60300198]
[1760019744709,6.24659192,222.14,222.07,4.60300198]
[1760019744897,6.24659192,222.14,222.08,0.72]
[1760019745095,6.24659192,222.14,222.07,4.60300198]
[1760019745294,6.24659192,222.14,222.07,4.60308224]
[1760019745599,6.24659192,222.14,222.07,5.32308224]
[1760019745813,6.24659192,222.12,222.07,5.32308224]
[1760019746011,6.24659192,222.15,222.08,0.72]
[1760019746197,6.24659192,222.17,222.08,0.72]
[1760019746399,10.87647521,222.29,222.1,20.8]
[1760019746710,0.53,222.27,222.11,0.72]
[1760019746894,4.49842555,222.3,222.11,0.72]
[1760019746895,6.24659192,222.23,222.11,0.72]
[1760019747093,6.24659192,222.19,222.11,0.72]
[1760019747296,6.24659192,222.19,222.11,33.78]
[1760019748100,6.24659192,222.19,222.11,5.22225185]
[1760019748292,6.24659192,222.16,222.11,4.50225185]
[1760019748491,6.24659192,222.16,222.09,4.50248886]
[1760019749095,0.53,222.19,222.09,4.50248886]
[1760019749292,20.8,222.21,222.1,0.72]
[1760019749522,6.24659192,222.19,222.1,0.72]
[1760019749700,6.24659192,222.16,222.09,4.50248886]
[1760019749900,6.24659192,222.14,222.07,37.66292637]
[1760019750098,6.24659192,222.12,222.07,4.60302299]
[1760019751125,6.24659192,222.12,222.07,5.32302299]
[1760019751295,31.67647521,222.16,222.08,0.72]
[1760019751499,20.8,222.16,222.08,0.72]
[1760019751699,6.24659192,222.3,222.16,20.8]
[1760019751904,6.24659192,222.28,222.13,10.87647521]
[1760019752110,3.66088883,222.37,222.0,3.82131148]
[1760019752111,6.24659192,222.26,222.18,4.50085516]
[1760019752312,6.24659192,222.24,222.17,57.08104627]
[1760019752513,6.24659192,222.22,222.16,33.14]
[1760019752818,6.24659192,222.24,222.16,0.72]
[1760019753199,6.24659192,222.22,222.16,0.72]
[1760019753399,6.24659192,222.24,222.16,0.72]
[1760019753619,0.53,222.3,222.18,20.8]
[1760019753816,6.24659192,222.29,222.19,0.72]
[1760019754028,6.24659192,222.27,222.19,0.72]
[1760019754230,6.24659192,222.27,222.2,4.50045004]
[1760019754534,6.24659192,222.27,222.2,15.75157515]
[1760019754714,6.24659192,222.25,222.15,20.8]
[1760019754912,0.53,222.26,222.15,20.8]
[1760019754913,6.24659192,222.23,222.16,33.86]
[1760019755107,6.24659192,222.23,222.15,20.8]
[1760019755434,6.24659192,222.21,222.13,0.72]
[1760019755605,6.24659192,222.21,222.13,33.86]
[1760019755800,6.24659192,222.19,222.1,0.72]
[1760019756007,6.24659192,222.19,222.12,33.14]
[1760019756329,6.24659192,222.19,222.13,4.50186827]
[1760019756540,6.24659192,222.17,222.07,12.07759784]
[1760019756718,6.24659192,222.11,222.07,0.1]
[1760019757031,6.24659192,222.1,222.07,0.1]
[1760019757534,6.24659192,222.08,222.07,0.1]
[1760019758921,11.27947376,222.08,222.07,0.1]
[1760019759431,22.15594897,222.08,222.07,0.1]
[1760019760733,49.20254089,222.08,222.07,0.1]
[1760019761215,31.3225875,222.08,222.07,0.1]
[1760019761525,31.3225875,222.08,222.07,1e-08]
[1760019762633,31.67647521,222.04,221.9,4.60652282]
[1760019762814,6.24659192,221.99,221.94,0.66]
[1760019763509,6.24659192,221.99,221.91,0.66]
[1760019763945,6.24659192,221.97,221.91,0.66]
[1760019764440,6.24659192,221.95,221.9,4.60651062]
[1760019764634,6.24659192,221.95,221.91,0.67]
[1760019765009,10.87647521,222.0,221.92,0.67]
[1760019765208,10.87647521,222.0,221.9,15.8728468]
[1760019765209,10.87647521,222.0,221.9,16.5428468]
[1760019765506,6.24659192,221.98,221.91,0.67]
[1760019765706,6.24659192,222.08,221.91,0.67]
[1760019765707,3.66450121,222.09,221.93,20.8]
[1760019766018,4.50276626,222.09,221.94,0.67]
[1760019766235,6.24659192,222.05,221.95,33.18]
[1760019766412,6.24659192,222.05,221.96,16.43860695]
[1760019766727,6.24659192,222.04,221.97,0.67]
[1760019767117,6.24659192,222.05,221.97,0.67]
[1760019767432,6.24659192,222.05,221.9,22.63267237]
[1760019767433,6.24659192,221.99,221.94,25.30557285]
[1760019767613,6.24659192,221.99,221.95,0.67]
[1760019767813,2.92444277,222.03,221.95,0.67]
[1760019768025,6.24659192,222.0,221.95,0.67]
[1760019768229,3.9404863,221.99,221.93,4.50587123]
[1760019768435,3.9404863,221.99,221.92,4.50612833]
[1760019768610,2.92444277,222.02,221.94,20.8]
[1760019768809,3.9404863,222.05,221.95,21.47]
[1760019769118,3.9404863,222.06,221.96,0.67]
[1760019769313,3.9404863,222.07,221.96,0.67]
[1760019769509,2.93371813,222.06,221.96,0.67]
[1760019769715,3.9404863,222.07,221.96,0.67]
[1760019769936,2.9341554,222.06,221.96,0.67]
[1760019770120,3.9404863,222.07,221.96,0.67]
[1760019770319,2.93443438,222.06,221.96,0.67]
[1760019770523,3.9404863,222.05,221.97,49.02789655]
[1760019770736,3.9404863,221.98,221.95,20.8]
[1760019770922,3.9404863,222.04,221.9,0.1]
[1760019770923,3.9404863,221.96,221.9,0.1]
[1760019771128,10.87647521,222.02,221.9,4.60652401]
[1760019771321,3.9404863,221.97,221.91,0.67]
[1760019771637,2.93560181,222.0,221.91,0.67]
[1760019771839,3.9404863,221.94,221.91,0.67]
[1760019772143,3.9404863,221.92,221.9,0.1]
[1760019773520,0.53,221.97,221.9,4.60647528]
[1760019773736,0.53,222.01,221.9,5.27647528]
[1760019773917,3.9404863,221.98,221.91,0.67]
[1760019774118,3.9404863,222.0,221.91,0.67]
[1760019774329,3.9404863,221.98,221.91,0.67]
[1760019774824,3.9404863,221.98,221.92,4.50612833]
[1760019775021,3.9404863,221.98,221.93,0.67]
[1760019775240,2.92949448,222.02,221.94,0.67]
[1760019775447,3.9404863,222.01,221.94,0.67]
[1760019775938,3.9404863,222.03,221.94,0.67]
[1760019776140,3.9404863,222.05,221.95,20.8]
[1760019776345,3.9404863,222.05,221.96,0.67]
[1760019776535,3.9404863,222.06,221.97,33.34]
[1760019776733,2.92862765,222.09,221.98,5.17491035]
[1760019776925,2.92862765,222.09,222.01,20.8]
[1760019776926,6.86911395,222.09,222.01,20.8]
[1760019777119,6.86911395,222.09,222.02,0.67]
[1760019777327,6.86911395,222.09,221.97,33.34]
[1760019777328,3.9404863,222.07,222.01,0.67]
[1760019777646,2.92862765,222.09,221.99,0.67]
[1760019777942,3.9404863,222.07,222.0,0.67]
[1760019778518,10.87647521,222.12,222.0,0.67]
[1760019778743,0.53,222.14,222.01,15.76505562]
[1760019778930,3.9404863,222.13,222.02,0.67]
[1760019779135,4.5012677,222.16,222.02,0.67]
[1760019779333,3.9404863,222.11,222.02,0.67]
[1760019779643,3.9404863,222.07,222.02,0.67]
[1760019779940,3.9404863,222.07,222.01,4.5043016]
[1760019780144,3.9404863,222.05,221.98,20.8]
[1760019780323,3.9404863,222.02,221.93,0.67]
[1760019780526,3.9404863,222.02,221.93,34.01]
[1760019780740,3.9404863,222.02,221.95,36.56931741]
[1760019781043,3.9404863,222.0,221.95,4.50551926]
[1760019781445,3.66268034,222.13,221.95,4.50551926]
[1760019781648,3.9404863,222.04,221.96,0.67]
[1760019781985,3.9404863,222.02,221.95,4.50551926]
[1760019782121,3.9404863,221.98,221.91,4.50633139]
[1760019782320,3.9404863,221.96,221.91,4.50633139]
[1760019782756,3.9404863,221.94,221.9,0.1]
[1760019782934,3.9404863,221.94,221.9,4.60644778]
[1760019783139,10.87647521,221.98,221.91,0.67]
[1760019783457,3.9404863,221.96,221.9,0.1]
[1760019783627,3.9404863,221.92,221.9,0.1]
[1760019784539,21.33,221.98,221.9,0.1]
[1760019784730,3.9404863,221.98,221.91,0.67]
[1760019784922,10.87647521,222.06,221.91,0.67]
[1760019785127,3.9404863,222.01,221.91,0.67]
[1760019785327,3.9404863,221.97,221.9,15.8728275]
[1760019785559,3.9404863,221.97,221.9,4.60649132]
[1760019786137,3.9404863,221.95,221.9,4.60649132]
[1760019786332,3.9404863,221.93,221.9,0.1]
[1760019786637,0.53,221.94,221.9,0.1]
[1760019786638,8.44681769,221.91,221.9,0.1]
[1760019786839,19.8532929,221.91,221.9,0.1]
[1760019787263,15.34696151,221.91,221.9,0.1]
[1760019787767,0.53,221.94,221.9,0.1]